[Event "Bicaz City Cup 2020"]
[Site "Bicaz"]
[Date "2020.03.06"]
[Round "3.17"]
[White "Saioc, David"]
[Black "Rangu, Daniel"]
[Result "1-0"]
[ECO "A36"]
[WhiteElo "1837"]
[BlackElo "1500"]
[Annotator "NA"]
[PlyCount "99"]
[EventDate "2020.03.05"]
[EventType "swiss"]
[EventCountry "ROU"]
[SourceTitle "playchess.com"]
[Source "ChessBase"]
[SourceQuality "1"]
[TimeControl "5400+30"]

1. c4 {[%emt 0:05:19]} c5 {[%emt 0:00:00]} 2. Nc3 {[%emt 0:00:08]} Nc6 {[%emt 0:00:00]} 3. g3 {[%emt 0:00:09]} g6 {[%emt 0:00:02]} 4. Bg2 {[%emt 0:00:12]} Bg7 {[%emt 0:00:07]} 5. e3 {[%emt 0:00:07]} e6 {[%emt 0:01:11]} 6. Nge2 {[%emt 0:00:07]} Nge7 {[%emt 0:00:05]} 7. d4 {[%emt 0:00:10]} cxd4 {[%emt 0:01:56]} 8. exd4 {[%emt 0:00:13]} d5 {[%emt 0:00:19]} 9. cxd5 {[%emt 0:00:08]} exd5 {[%emt 0:00:18]} 10. O-O {[%emt 0:00:15]} O-O {[%emt 0:00:01]} 11. Bg5 {[%emt 0:05:02] A36: Symmetrical English vs ...g6: 4 Bg2 Bg7.} h6 {[%emt 0:05:38]} 12. Be3 {[%emt 0:00:14]} Be6 {[%emt 0:03:01] [#]} 13. Nf4 $146 {[%emt 0:00:08]} ({Predecessor:} 13. Qd2 Kh7 14. Nf4 Qd7 15. Rfe1 Rae8 16. a3 b6 17. Qd3 Na5 18. Nxe6 fxe6 19. Re2 {1-0 (69) Alefs,W (1609)-Smits,O (1712) Bad Sooden 2006}) 13... g5 {[%emt 0:02:03]} 14. Nxe6 {[%emt 0:18:12]} fxe6 {[%emt 0:00:24]} 15. Bh3 {[%emt 0:00:49]} Nf5 {[%emt 0:00:48]} 16. Ne2 {[%emt 0:00:06]} Qd6 {[%emt 0:02:20]} 17. Qd2 {[%emt 0:06:11]} Qb4 {[%emt 0:09:05]} 18. Qd3 {[%emt 0:04:48]} Rae8 {[%emt 0:14:13]} 19. Rfd1 {[%emt 0:07:05]} Nd6 {[%emt 0:08:46]} 20. b3 {[%emt 0:02:23]} Qb5 {[%emt 0:07:17]} 21. Qd2 {[%emt 0:12:31]} Ne4 {[%emt 0:00:53]} 22. Nc3 {[%emt 0:09:55]} Nxc3 {[%emt 0:04:05]} 23. Qxc3 {[%emt 0:00:21]} Qe2 {[%emt 0:05:22]} 24. Re1 {[%emt 0:06:27]} Qh5 {[%emt 0:01:23]} 25. Bg2 {[%emt 0:00:42]} g4 {[%emt 0:00:29]} 26. Rad1 {[%emt 0:01:54]} Qf5 {[%emt 0:04:10]} 27. Bf4 {[%emt 0:02:41]} Rc8 {[%emt 0:04:31]} 28. Qe3 {[%emt 0:01:39]} Rfe8 {[%emt 0:01:11]} 29. Bxh6 {[%emt 0:00:25]} Nb4 {[%emt 0:01:55]} 30. Bxg7 {[%emt 0:01:11]} Kxg7 {[%emt 0:04:36]} 31. Qe5+ {[%emt 0:00:14]} (31. Re2 $142) 31... Qxe5 {[%emt 0:02:17]} 32. Rxe5 {[%emt 0:00:08]} Kg6 {[%emt 0:00:38]} 33. Rde1 {[%emt 0:01:58]} Rc6 {[%emt 0:01:30]} 34. Bxd5 {[%emt 0:00:45]} Nxd5 {[%emt 0:02:45] [#]} 35. Rxd5 $1 {[%emt 0:00:06] Pin} exd5 {[%emt 0:00:08]} 36. Rxe8 {[%emt 0:00:06]} Rc1+ {[%emt 0:00:07]} 37. Kg2 {[%emt 0:00:04]} Rd1 {[%emt 0:01:04]} 38. Re7 {[%emt 0:00:07]} Rxd4 {[%emt 0:01:11]} 39. Kf1 {[%emt 0:00:19]} (39. Rxb7 $142 a6 40. Ra7) 39... Rd2 {[%emt 0:00:54]} 40. Rxb7 {[%emt 0:00:14]} Rxa2 {[%emt 0:00:26] [#]} 41. Rb5 $2 {[%emt 0:01:00]} ({White has to play} 41. Rb4 $1 $18) 41... Rb2 {[%emt 0:02:20]} 42. Rxd5 {[%emt 0:00:27]} Rxb3 {[%emt 0:00:14] [#]} 43. Ra5 {[%emt 0:00:04]} (43. Kg2 $1 $18 {is the precise move to win.}) 43... Rb7 {[%emt 0:01:15]} 44. Kg2 {[%emt 0:00:11]} Rh7 {[%emt 0:00:58]} 45. Ra4 {[%emt 0:02:19]} Kg5 {[%emt 0:02:59]} 46. Rf4 {[%emt 0:00:17]} Rh6 {[%emt 0:01:27]} 47. f3 {[%emt 0:00:43]} gxf3+ {[%emt 0:00:03]} 48. Rxf3 {[%emt 0:00:07]} Rf6 {[%emt 0:00:12]} 49. Rxf6 $18 {[%emt 0:00:30]} Kxf6 {[%emt 0:00:39]} 50. Kf2 {[%emt 0:00:06]} 1-0

[Event "Bicaz City Cup 2020"]
[Site "Bicaz"]
[Date "2020.03.06"]
[Round "3.18"]
[White "Melinte, Rares-Andrei"]
[Black "Pascu, Mihai"]
[Result "1-0"]
[ECO "E10"]
[WhiteElo "1785"]
[BlackElo "1488"]
[Annotator "NA"]
[PlyCount "41"]
[EventDate "2020.03.05"]
[EventType "swiss"]
[EventCountry "ROU"]
[SourceTitle "playchess.com"]
[Source "ChessBase"]
[SourceQuality "1"]
[TimeControl "5400+30"]

1. d4 {[%emt 0:00:00]} e6 {[%emt 0:01:17]} 2. c4 {[%emt 0:00:23]} Nf6 {[%emt 0:00:34]} 3. Nf3 {[%emt 0:00:19]} Be7 {[%emt 0:01:03]} 4. g3 {[%emt 0:00:51]} d6 {[%emt 0:02:59]} 5. Bg2 {[%emt 0:00:54]} Nbd7 {[%emt 0:00:47]} 6. O-O {[%emt 0:00:48]} c6 {[%emt 0:02:39]} 7. Qc2 {[%emt 0:01:27]} O-O {[%emt 0:01:43]} 8. e4 {[%emt 0:01:53]} Qc7 {[%emt 0:02:11]} 9. Re1 {[%emt 0:01:09]} e5 {[%emt 0:02:26]} 10. Nc3 {[%emt 0:01:39]} exd4 {[%emt 0:03:16]} 11. Nxd4 {[%emt 0:00:21]} Ne5 {[%emt 0:03:52]} 12. b3 {[%emt 0:02:17]} Re8 {[%emt 0:00:55]} 13. Nf5 {[%emt 0:06:21]} Bf8 {[%emt 0:05:51]} 14. Bg5 {[%emt 0:02:10]} Ned7 {[%emt 0:03:24]} 15. Rad1 {[%emt 0:01:52]} g6 {[%emt 0:00:58]} 16. Nd4 {[%emt 0:03:30]} Bg7 {[%emt 0:01:32]} 17. Bf4 {[%emt 0:08:17]} Ne5 {[%emt 0:01:55]} 18. Bc1 {[%emt 0:02:15]} a6 {[%emt 0:06:32]} 19. h3 {[%emt 0:04:33]} Be6 {[%emt 0:02:58]} 20. f4 {[%emt 0:02:31]} c5 {[%emt 0:00:24]} 21. Nxe6 {[%emt 0:00:47]} 1-0

[Event "Bicaz City Cup 2020"]
[Site "Bicaz"]
[Date "2020.03.06"]
[Round "3.19"]
[White "Hejja, Adam-Peter"]
[Black "Covrig, Larisa-Raluca"]
[Result "1-0"]
[ECO "A01"]
[WhiteElo "1356"]
[BlackElo "1779"]
[Annotator "NA"]
[PlyCount "57"]
[EventDate "2020.03.05"]
[EventType "swiss"]
[EventCountry "ROU"]
[SourceTitle "playchess.com"]
[Source "ChessBase"]
[SourceQuality "1"]
[TimeControl "5400+30"]

1. b3 {[%emt 0:00:00]} d5 {[%emt 0:00:01]} 2. Bb2 {[%emt 0:00:00]} Bf5 {[%emt 0:00:45]} 3. g3 {[%emt 0:00:09]} e6 {[%emt 0:00:18]} 4. Bg2 {[%emt 0:00:08]} Nf6 {[%emt 0:00:30]} 5. d3 {[%emt 0:00:16]} c5 {[%emt 0:01:59]} 6. e3 {[%emt 0:01:13]} Nc6 {[%emt 0:01:19]} 7. Nd2 {[%emt 0:01:10]} Bg6 {[%emt 0:02:42]} 8. Ne2 {[%emt 0:01:29]} Be7 {[%emt 0:00:42]} 9. O-O {[%emt 0:01:39]} O-O {[%emt 0:01:01]} 10. h3 {[%emt 0:02:08]} e5 {[%emt 0:04:44]} 11. f4 {[%emt 0:08:30]} exf4 {[%emt 0:03:14]} 12. exf4 {[%emt 0:01:33]} Bf5 {[%emt 0:01:54]} 13. g4 {[%emt 0:02:46]} Bc8 {[%emt 0:02:27]} 14. Ng3 {[%emt 0:00:53]} d4 {[%emt 0:08:45]} 15. Nde4 {[%emt 0:11:19]} Nd5 {[%emt 0:02:49]} 16. Bc1 {[%emt 0:03:29]} a5 {[%emt 0:11:59]} 17. Bd2 {[%emt 0:05:23]} Re8 {[%emt 0:05:19]} 18. g5 {[%emt 0:01:26]} Bd6 {[%emt 0:02:32]} 19. Qh5 {[%emt 0:01:46]} Ncb4 {[%emt 0:05:01]} 20. Nxd6 {[%emt 0:04:46]} Qxd6 {[%emt 0:00:07]} 21. Ne4 {[%emt 0:02:45]} Qc7 {[%emt 0:02:40]} 22. Bxb4 {[%emt 0:01:28]} axb4 {[%emt 0:01:22]} 23. g6 {[%emt 0:03:17]} Bf5 {[%emt 0:09:53]} 24. Qxf5 {[%emt 0:02:46]} Ne3 {[%emt 0:00:10]} 25. gxf7+ {[%emt 0:02:30]} Qxf7 {[%emt 0:00:23]} 26. Qxf7+ {[%emt 0:00:18]} Kxf7 {[%emt 0:00:10]} 27. Nd6+ {[%emt 0:00:34]} Ke7 {[%emt 0:00:38]} 28. Nxe8 {[%emt 0:00:20]} Nxf1 {[%emt 0:00:04]} 29. Rxf1 {[%emt 0:00:25]} 1-0

[Event "Bicaz City Cup 2020"]
[Site "Bicaz"]
[Date "2020.03.06"]
[Round "3.20"]
[White "Toma, Adrian-Robert"]
[Black "Arghirescu, Marius"]
[Result "0-1"]
[ECO "A17"]
[WhiteElo "2157"]
[BlackElo "1759"]
[Annotator "ChessBase"]
[PlyCount "68"]
[EventDate "2020.03.05"]
[EventType "swiss"]
[EventCountry "ROU"]
[SourceTitle "playchess.com"]
[Source "ChessBase"]
[SourceQuality "1"]
[TimeControl "5400+30"]

1. c4 {[%emt 0:00:00]} Nf6 {[%emt 0:02:31]} 2. Nc3 {[%emt 0:00:12]} e6 {[%emt 0:00:14]} 3. g3 {[%emt 0:00:27]} d5 {[%emt 0:00:33]} 4. cxd5 {[%emt 0:00:45]} exd5 {[%emt 0:00:09]} 5. e3 {[%emt 0:00:44]} c6 {[%emt 0:00:41]} 6. Bg2 {[%emt 0:00:21]} Bd6 {[%emt 0:01:39]} 7. Nge2 {[%emt 0:00:33]} O-O {[%emt 0:00:20]} 8. O-O {[%emt 0:00:13]} Na6 {[%emt 0:01:04]} 9. d4 {[%emt 0:00:40]} Bf5 {[%emt 0:00:52]} 10. a3 {[%emt 0:01:07]} Qd7 {[%emt 0:01:24]} 11. f3 {[%emt 0:03:41]} Bh3 {[%emt 0:01:05]} 12. Nf4 {[%emt 0:00:44]} Bxf4 {[%emt 0:01:11]} 13. exf4 {[%emt 0:00:58]} Bxg2 {[%emt 0:00:27]} 14. Kxg2 {[%emt 0:00:21]} Rfe8 {[%emt 0:01:36]} 15. Bd2 {[%emt 0:01:29]} Nc7 {[%emt 0:01:52]} 16. Qc2 {[%emt 0:04:25]} Ne6 {[%emt 0:02:07]} 17. Qd3 {[%emt 0:01:10]} Qc7 {[%emt 0:06:05]} 18. Rfe1 {[%emt 0:03:04]} Qb6 {[%emt 0:01:52]} 19. Na4 {[%emt 0:04:46]} Qxd4 {[%emt 0:00:33]} 20. Qxd4 {[%emt 0:01:26]} Nxd4 {[%emt 0:00:09]} 21. Bc3 {[%emt 0:03:26]} Nc2 {[%emt 0:03:55]} 22. Rxe8+ {[%emt 0:00:40]} Rxe8 {[%emt 0:00:24]} 23. Rc1 {[%emt 0:00:40]} Re2+ {[%emt 0:01:35]} 24. Kh3 {[%emt 0:00:21]} d4 {[%emt 0:01:21]} 25. Bb4 {[%emt 0:02:15]} b6 {[%emt 0:03:15]} 26. Bd6 {[%emt 0:00:55]} Nd5 {[%emt 0:03:27]} 27. Bb8 {[%emt 0:06:45]} Re6 {[%emt 0:12:55]} 28. Bxa7 {[%emt 0:02:31]} Nce3 {[%emt 0:01:52]} 29. g4 {[%emt 0:12:01]} Nxf4+ {[%emt 0:00:23]} 30. Kh4 {[%emt 0:03:08]} Rh6+ {[%emt 0:01:07]} 31. Kg3 {[%emt 0:06:40]} Ne2+ {[%emt 0:00:18]} 32. Kf2 {[%emt 0:00:26]} Rxh2+ {[%emt 0:00:04]} 33. Ke1 {[%emt 0:00:43]} Nxc1 {[%emt 0:00:04]} 34. Nc3 {[%emt 0:02:00]} dxc3 {[%emt 0:00:10]} 0-1

[Event "Bicaz City Cup 2020"]
[Site "Bicaz"]
[Date "2020.03.07"]
[Round "4.13"]
[White "Hejja, Adam-Peter"]
[Black "Cimpoiasu, Dan"]
[Result "0-1"]
[ECO "C18"]
[WhiteElo "1356"]
[BlackElo "1884"]
[Annotator "NA RC"]
[PlyCount "76"]
[EventDate "2020.03.05"]
[EventType "swiss"]
[EventCountry "ROU"]
[SourceTitle "playchess.com"]
[Source "ChessBase"]
[SourceQuality "1"]
[TimeControl "5400+30"]

1. e4 {[%emt 0:03:02]} e6 {[%emt 0:06:46]} 2. d4 {[%emt 0:01:36]} d5 {[%emt 0:00:39]} 3. Nc3 {[%emt 0:01:34]} Bb4 {[%emt 0:00:39]} 4. e5 {[%emt 0:04:59]} c5 {[%emt 0:00:34]} 5. a3 {[%emt 0:06:01]} Bxc3+ {[%emt 0:02:13]} 6. bxc3 {[%emt 0:00:11]} Ne7 {[%emt 0:01:09]} 7. Be2 {[%emt 0:03:52]} O-O {[%emt 0:04:18]} 8. f4 {[%emt 0:03:21]} b6 {[%emt 0:11:35]} 9. Nf3 {[%emt 0:01:44]} Ba6 {[%emt 0:00:28]} 10. Bxa6 {[%emt 0:02:18]} Nxa6 {[%emt 0:00:09]} 11. O-O {[%emt 0:02:05]} Nb8 {[%emt 0:00:38]} 12. Qe1 {[%emt 0:03:36]} Nbc6 {[%emt 0:02:53]} 13. g4 {[%emt 0:03:28]} Rc8 {[%emt 0:10:01]} 14. Ra2 {[%emt 0:09:03]} Qd7 {[%emt 0:05:55]} 15. Qh4 {[%emt 0:04:25]} f5 {[%emt 0:03:14]} 16. g5 {[%emt 0:09:40]} Na5 {[%emt 0:01:46]} 17. Qg3 {[%emt 0:01:28]} cxd4 {[%emt 0:04:41]} 18. cxd4 {[%emt 0:04:26]} Rc6 {[%emt 0:01:31]} 19. Bd2 {[%emt 0:03:37]} Nc4 {[%emt 0:00:53]} 20. Rc1 {[%emt 0:02:06]} Rfc8 {[%emt 0:01:09]} 21. Be1 {[%emt 0:03:25]} Qc7 {[%emt 0:04:40]} 22. h4 {[%emt 0:03:44]} Ne3 {[%emt 0:04:34]} 23. c3 {[%emt 0:01:26]} b5 {[%emt 0:02:56]} 24. Nh2 {[%emt 0:03:34]} Nc4 {[%emt 0:01:33]} 25. Rb1 {[%emt 0:03:09]} Qa5 {[%emt 0:01:08]} 26. Rba1 {[%emt 0:04:52]} Nb6 {[%emt 0:02:00]} 27. c4 {[%emt 0:02:26]} Qa4 {[%emt 0:03:33]} 28. c5 {[%emt 0:00:41]} Nc4 {[%emt 0:02:20]} 29. Bb4 {[%emt 0:03:56]} R6c7 {[%emt 0:02:21]} 30. h5 {[%emt 0:01:06]} Nc6 {[%emt 0:00:46]} 31. Qc3 {[%emt 0:01:44]} a5 {[%emt 0:00:29]} 32. Nf3 {[%emt 0:00:53]} axb4 {[%emt 0:01:06]} 33. axb4 {[%emt 0:00:26]} Qxb4 {[%emt 0:00:22]} 34. Qxb4 {[%emt 0:00:19]} Nxb4 {[%emt 0:00:14]} 35. Ra8 {[%emt 0:00:49]} Nd3 {[%emt 0:03:27]} 36. Rxc8+ {[%emt 0:00:51]} Rxc8 {[%emt 0:00:20]} 37. g6 {[%emt 0:00:54]} hxg6 {[%emt 0:02:03]} 38. hxg6 {[%emt 0:00:11]} Nxf4 {[%emt 0:00:18]} 0-1

[Event "Bicaz City Cup 2020"]
[Site "Bicaz"]
[Date "2020.03.07"]
[Round "5.16"]
[White "Madin, Ovidiu-Andrei"]
[Black "Ienasoaie, Rafael"]
[Result "0-1"]
[ECO "B90"]
[WhiteElo "1687"]
[BlackElo "1883"]
[Annotator "NA RC"]
[PlyCount "102"]
[EventDate "2020.03.05"]
[EventType "swiss"]
[EventCountry "ROU"]
[SourceTitle "playchess.com"]
[Source "ChessBase"]
[SourceQuality "1"]
[TimeControl "5400+30"]

1. e4 {[%emt 0:00:00]} c5 {[%emt 0:00:00]} 2. Nf3 {[%emt 0:00:00]} d6 {[%emt 0:00:00]} 3. d4 {[%emt 0:00:00]} cxd4 {[%emt 0:00:05]} 4. Nxd4 {[%emt 0:00:00]} Nf6 {[%emt 0:00:24]} 5. Nc3 {[%emt 0:00:33]} a6 {[%emt 0:00:13]} 6. a4 {[%emt 0:00:44]} e5 {[%emt 0:00:48]} 7. Nf5 {[%emt 0:01:24]} Bxf5 {[%emt 0:01:41]} 8. exf5 {[%emt 0:00:01]} d5 {[%emt 0:00:21]} 9. Qe2 {[%emt 0:00:12]} Nc6 {[%emt 0:00:38]} 10. g4 {[%emt 0:00:10]} d4 {[%emt 0:02:57]} 11. Ne4 {[%emt 0:03:31]} Nxe4 {[%emt 0:04:45]} 12. Qxe4 $17 {[%emt 0:00:03]} Be7 {[%emt 0:00:18]} 13. Bc4 {[%emt 0:00:42]} Qd6 {[%emt 0:02:07]} 14. O-O {[%emt 0:01:04]} g5 {[%emt 0:18:11]} 15. fxg6 {[%emt 0:02:14]} Qxg6 {[%emt 0:00:12]} 16. Qxg6 {[%emt 0:02:17]} hxg6 {[%emt 0:01:13]} 17. c3 {[%emt 0:00:44]} f5 {[%emt 0:00:42]} 18. cxd4 {[%emt 0:00:25]} Nxd4 {[%emt 0:00:08]} 19. Be3 {[%emt 0:00:29]} Nf3+ {[%emt 0:00:18]} 20. Kg2 {[%emt 0:00:09]} fxg4 {[%emt 0:00:28]} 21. Rh1 {[%emt 0:00:21]} Rh3 {[%emt 0:01:45]} 22. Be6 {[%emt 0:00:47]} Nh4+ {[%emt 0:00:09]} 23. Kf1 {[%emt 0:00:08]} Nf5 {[%emt 0:00:06]} 24. Bb6 {[%emt 0:00:33]} Bd6 {[%emt 0:01:33]} 25. Bd5 Ke7 {[%emt 0:00:11]} 26. Rg1 {[%emt 0:04:13]} Rh4 {[%emt 0:01:12]} 27. Re1 {[%emt 0:00:08]} Kf6 {[%emt 0:00:32]} 28. Re4 {[%emt 0:00:26]} Nh6 {[%emt 0:01:55]} 29. f3 {[%emt 0:01:43]} Rxh2 {[%emt 0:00:45]} 30. Rexg4 {[%emt 0:00:26]} Nxg4 {[%emt 0:00:06]} 31. Rxg4 {[%emt 0:00:07]} Rxb2 {[%emt 0:00:10]} 32. Be3 {[%emt 0:00:22]} Rh8 {[%emt 0:00:27]} 33. Kg1 {[%emt 0:02:11]} Re2 {[%emt 0:00:31]} 34. Bf2 {[%emt 0:00:23]} Rc8 {[%emt 0:00:18]} 35. Kf1 {[%emt 0:02:13]} Rd2 {[%emt 0:00:07]} 36. Bh4+ {[%emt 0:02:24]} Kg7 {[%emt 0:00:11]} 37. Bc4 {[%emt 0:01:35]} b5 {[%emt 0:00:21]} 38. axb5 {[%emt 0:00:13]} axb5 {[%emt 0:00:06]} 39. Be2 {[%emt 0:00:20]} Rcc2 {[%emt 0:00:26]} 40. Re4 {[%emt 0:00:45]} b4 {[%emt 0:00:17]} 41. Be1 {[%emt 0:01:00]} Rc1 {[%emt 0:00:17]} 42. Rc4 {[%emt 0:00:52]} Rxc4 {[%emt 0:00:08]} 43. Bxc4 {[%emt 0:00:13]} Rc2 {[%emt 0:00:15]} 44. Bb3 {[%emt 0:01:26]} Rb2 {[%emt 0:00:06]} 45. Bd5 {[%emt 0:00:03]} b3 {[%emt 0:00:07]} 46. f4 {[%emt 0:00:36]} Rb1 {[%emt 0:00:10]} 47. Ke2 {[%emt 0:00:05]} b2 {[%emt 0:00:12]} 48. Be4 {[%emt 0:00:31]} Ra1 {[%emt 0:00:13]} 49. Bc3 {[%emt 0:00:36]} b1=Q {[%emt 0:00:13]} 50. Bxb1 {[%emt 0:00:21]} Rxb1 {[%emt 0:00:08]} 51. fxe5 {[%emt 0:00:02]} Be7 {[%emt 0:00:11]} 0-1

[Event "Bicaz City Cup 2020"]
[Site "Bicaz"]
[Date "2020.03.07"]
[Round "5.17"]
[White "Chiprian, Ionel"]
[Black "Maria, Lia-Alexandra"]
[Result "1-0"]
[ECO "A22"]
[WhiteElo "1861"]
[BlackElo "1547"]
[Annotator "NA RC"]
[PlyCount "99"]
[EventDate "2020.03.05"]
[EventType "swiss"]
[EventCountry "ROU"]
[SourceTitle "playchess.com"]
[Source "ChessBase"]
[SourceQuality "1"]
[TimeControl "5400+30"]

1. c4 {[%emt 0:00:09]} e5 {[%emt 0:00:00]} 2. Nc3 {[%emt 0:00:10]} Nf6 {[%emt 0:00:33]} 3. g3 {[%emt 0:00:37]} c6 {[%emt 0:02:04]} 4. Nf3 {[%emt 0:00:49]} e4 {[%emt 0:01:32]} 5. Ng5 {[%emt 0:03:07]} d5 {[%emt 0:00:26]} 6. cxd5 {[%emt 0:00:35] A23: English Opening: 1...e5 2 Nc3 Nf6 3 g3 c6.} cxd5 {[%emt 0:00:28]} 7. d4 {[%emt 0:05:05]} Nc6 {[%emt 0:03:22]} 8. Nh3 {[%emt 0:01:16] [#]} Bb4 $146 {[%emt 0:01:32]} ({Predecessor:} 8... h6 9. Bg2 Bb4 10. O-O O-O 11. a3 Bxc3 12. bxc3 Bf5 13. f4 Re8 14. e3 Bg4 {1-0 (64) Ziegler,U (1751)-Mayeres,H (1899) Neustadt 2017}) 9. Bg5 {[%emt 0:01:54]} O-O {[%emt 0:10:48]} 10. Bg2 {[%emt 0:01:27]} h6 {[%emt 0:01:30]} 11. Bxf6 {[%emt 0:05:41]} Qxf6 {[%emt 0:01:13]} 12. e3 {[%emt 0:00:08]} Rd8 {[%emt 0:00:47]} 13. O-O {[%emt 0:00:41]} Na5 {[%emt 0:05:12]} 14. Nf4 {[%emt 0:02:12]} Bxc3 {[%emt 0:01:15]} 15. bxc3 {[%emt 0:00:14]} Nc4 {[%emt 0:01:17]} 16. Qe2 {[%emt 0:03:58]} Bf5 {[%emt 0:03:04]} 17. Nxd5 {[%emt 0:00:50]} Rxd5 {[%emt 0:01:54]} 18. Qxc4 {[%emt 0:00:10]} Rad8 {[%emt 0:00:59]} 19. Qb4 {[%emt 0:01:30]} b5 {[%emt 0:00:55]} 20. a4 {[%emt 0:00:25]} a6 {[%emt 0:01:31]} 21. axb5 {[%emt 0:00:04]} axb5 {[%emt 0:02:40]} 22. Ra5 {[%emt 0:00:13]} Qc6 {[%emt 0:02:05]} 23. Rc1 {[%emt 0:00:37]} Rc8 {[%emt 0:01:19]} 24. Bf1 {[%emt 0:00:59]} Bd7 {[%emt 0:01:39]} 25. Qb1 {[%emt 0:03:34]} Rh5 $18 {[%emt 0:02:28]} 26. c4 {[%emt 0:02:18]} Qc7 {[%emt 0:01:35]} 27. Qa1 {[%emt 0:01:19]} Be6 {[%emt 0:02:11]} 28. d5 {[%emt 0:02:00]} Bxd5 {[%emt 0:03:17]} 29. Rxb5 {[%emt 0:00:10]} Rg5 {[%emt 0:00:53]} 30. Qd4 {[%emt 0:01:28]} Qc6 {[%emt 0:02:02]} 31. Rbb1 {[%emt 0:07:05]} Be6 {[%emt 0:01:11]} 32. Bg2 {[%emt 0:00:48]} Bf5 {[%emt 0:03:13]} 33. Rb6 {[%emt 0:00:26]} Qc7 {[%emt 0:00:20]} 34. Rd6 {[%emt 0:00:23]} Bg6 {[%emt 0:02:08]} 35. Rd7 {[%emt 0:01:39]} Qc6 {[%emt 0:01:53]} 36. Rd8+ {[%emt 0:00:57]} Rxd8 {[%emt 0:00:10]} 37. Qxd8+ {[%emt 0:00:05]} Kh7 {[%emt 0:00:05]} 38. Qd4 {[%emt 0:00:11]} Rc5 {[%emt 0:00:28]} 39. Bf1 {[%emt 0:00:46]} Bh5 {[%emt 0:03:16]} 40. Ra1 {[%emt 0:00:21]} Bf3 {[%emt 0:00:57]} 41. Rc1 {[%emt 0:00:32]} h5 {[%emt 0:06:16]} 42. Bg2 {[%emt 0:07:19]} h4 {[%emt 0:03:09]} 43. Bxf3 {[%emt 0:01:43]} exf3 {[%emt 0:00:21]} 44. Qxh4+ {[%emt 0:00:12]} Kg8 {[%emt 0:00:24]} 45. Qg4 {[%emt 0:03:33]} Qd5 {[%emt 0:01:07]} 46. h4 {[%emt 0:02:10]} Qd2 {[%emt 0:00:25]} 47. Rf1 {[%emt 0:00:15]} Qe2 {[%emt 0:00:10]} 48. Ra1 {[%emt 0:03:00]} g6 {[%emt 0:02:46]} 49. Qd4 {[%emt 0:00:21]} Ra5 {[%emt 0:01:39]} 50. Qg4 1-0